{"text_format":"1","workbook":"xlsx","n_sheets":28,"sheets":["mod_02","modCheck","mod_Tit","Инструкция","Лог обновления","Титульный","Раздел 1","Раздел 2","Обосновывающие материалы","Комментарии","Проверка","TEHSHEET","modfrmRegion","et_union","mod_mat","modReestr","modfrmReestr","mod_wb","modUpdTemplMain","modfrmCheckUpdates","modInfo","modInstruction","modServiceModule","mod_Coms","modCommandButton","modfrmDateChoose","mod_01","REESTR_ORG"],"not_rendered":{"charts":0,"images":19,"macros":1,"external_links":0,"defined_names":114,"comments":1,"pivot_tables":0},"unopened":[],"bounds":{"document_bytes":16777216,"sheet_cells":100000,"rows_first":2000,"rows_last":500,"rows_between":2000,"halvings":0,"cell_chars":16384,"cell_head_chars":4096},"cells_cut":0,"cells_raw":0,"read":"whole","date_system":"1900"}

{"sheet":"mod_02","index":0,"n_rows":0,"n_cols":0,"rows_kept":0,"cut":false,"hidden":true,"merged":[[31,4,31,8],[19,5,19,6],[20,5,20,6],[21,5,21,6],[22,5,22,6],[23,5,23,6],[29,5,29,6],[13,5,13,6],[14,5,14,6],[15,5,15,6],[16,5,16,6],[17,5,17,6],[18,5,18,6],[5,4,5,9],[8,5,8,6],[9,5,9,6],[10,5,10,6],[11,5,11,6],[12,5,12,6]]}

{"sheet":"modCheck","index":1,"n_rows":19,"n_cols":5,"rows_kept":19,"cut":false,"hidden":true,"merged":[]}
["Инструкция","TEHSHEET","Раздел 1",null,"region_name"]
["Лог обновления","et_union","Раздел 2",null,"prd"]
["Титульный","mod_mat","Обосновывающие материалы",null,"prdDop"]
["Раздел 1","modReestr",null,null,"org"]
["Раздел 2","modfrmReestr",null,null,"inn"]
["Обосновывающие материалы","mod_wb",null,null,"kpp"]
["Комментарии","modUpdTemplMain",null,null,"fil_flag"]
["Проверка","modfrmCheckUpdates",null,null,"fil"]
[null,"modInfo",null,null,"mr"]
[null,"modInstruction",null,null,"mo"]
[null,"modServiceModule",null,null,"oktmo"]
[null,"mod_Coms"]
[null,"mod_Tit"]
[null,"modCheck"]
[null,"modCommandButton"]
[null,"modfrmDateChoose"]
[null,"mod_01"]
[null,"mod_02"]
[null,"REESTR_ORG"]

{"sheet":"mod_Tit","index":2,"n_rows":0,"n_cols":0,"rows_kept":0,"cut":false,"hidden":true,"merged":[]}

{"sheet":"Инструкция","index":3,"n_rows":86,"n_cols":27,"rows_kept":86,"cut":false,"hidden":false,"merged":[[1,1,1,6],[2,1,2,2],[4,1,4,24],[6,4,18,23],[20,5,20,12],[20,15,20,23],[21,5,21,12],[21,15,21,23],[22,15,22,22],[34,4,38,23],[39,4,39,23],[40,4,44,23],[45,4,56,23],[57,4,57,23],[58,4,58,23],[59,4,59,6],[59,7,59,23],[60,7,60,23],[69,4,69,23],[70,4,70,23],[71,4,71,23],[72,4,72,23],[73,4,73,23],[74,4,74,23],[81,4,81,23],[83,5,83,18],[85,5,85,23],[75,4,75,23],[76,4,76,23],[77,4,77,23],[79,4,79,23],[80,4,80,7],[80,8,80,23],[78,4,78,23]]}
[null,null,null,null,null,null,null,null,null,null,null,null,null,null,null,null,null,null,null,null,null,null,null,null,null,null," (требуется обновление)"]
[null,{"$f":"\"Код отчёта: \" & GetCode()","v":"Код отчёта: FORMA.P2.ST"}]
[null,{"$f":"\"Версия \" & GetVersion()","v":"Версия 3.2.2"}]
[]
[null,{"$f":"GetTemplateName()","v":"Сведения об инвестициях в нефинансовые активы"}]
[]
[null,null,null,null,"• На рабочем месте должен быть установлен MS Office 2003 SP3, 2007 SP3, 2010, 2013, 2016 с полной версией MS Excel\n\n• Макросы во время работы должны быть включены (!)\n\n• Для корректной работы отчёта требуется выбрать низкий уровень безопасности\n(В меню MS Excel 2003: Сервис | Макрос | Безопасность | выбрать пункт «Низкая безопасность» | OK)\n(В меню MS Excel 2007/2010/2013: Параметры Excel | Центр управления безопасностью | Параметры центра управления безопасностью | Параметры макросов | Включить все макросы | ОК)\n\n• Если Вы работаете в табличном процессоре MS Excel 2007 и выше, то можете использовать для работы формат XLSB (Двоичная книга Excel). При работе в формате XLSB заметно быстрее происходит сохранение файла, а также уменьшается размер по сравнению с форматами XLS и XLSM\n\n• Не рекомендуется снимать защиту с листов и каким-либо образом модифицировать защищаемые формулы и расчётные поля, в противном случае, отчёт будет отклонён системой\n\n• При сохранении не следует выбирать формат XLSX (Книга Excel), так как в указанном формате макросы, необходимые для работы отчёта, безвозвратно удаляются"]
[]
[]
[]
[]
[]
[]
[]
[]
[]
[]
[]
[]
[]
[null,null,null,null,"A"," - необязательные для заполнения",null,null,null,null,null,null,null,null,"A"," - с формулами и константами"]
[null,null,null,null,"A"," - обязательные для заполнения",null,null,null,null,null,null,null,null,"A"," - с выбором значений по двойному клику,"]
[null,null,null,null,null,null,null,null,null,null,null,null,null,null,null,"либо с возможностью выбора даты из календаря или ручного ввода"]
[]
[]
[]
[]
[]
[]
[]
[]
[]
[]
[]
[null,null,null,null,"Если в предложенном Вам списке необходимая организация, МР/МО отсутствуют, обновите реестры с помощью кнопок\n\nВ результате синхронизации с базой данных список организаций (МР/МО) будет заменён актуальным (механизм синхронизации требует подключения к сети Интернет и основан на использовании протокола HTTPS (TCP порт 443))\n\nЕсли после обновления Вам не удалось найти необходимую организацию в списке, обратитесь к ответственному за поддержание реестра Вашего региона."]
[]
[]
[]
[]
[]
[]
[]
[]
[]
[]
[null,null,null,null,"• При сохранении шаблона осуществляется проверка корректности данных, в том числе на наличие значений в ячейках, обязательных для заполнения\n\n• Если какая-то ячейка не удовлетворяет условию проверки, на лист «Проверка» добавляется гиперссылка на данную ячейку и указывается причина ошибки\n\n• В колонке «Статус» для каждого сообщения возможны 2 значения: ошибка и предупреждение\n\n• При наличии сообщений со статусом «Ошибка» шаблон будет отклонён системой и не будет загружен в хранилище данных, сообщения со статусом «Предупреждение» носят информационный характер, и такой шаблон будет принят системой"]
[]
[]
[]
[]
[]
[]
[]
[]
[]
[]
[]
[null,null,null,null,"Консультация службы поддержки"]
[null,null,null,null,"База знаний"]
[]
[]
[]
[]
[]
[]
[]
[]
[]
[]
[null,null,null,null,"Принципы работы с шаблоном"]
[null,null,null,null," Перед началом работы с шаблоном Вам необходимо нажать кнопку \"Приступить к заполнению\", после чего на форме выбора выбрать из выпадающего списка нужный субъект РФ. После выбора субъекта РФ в шаблоне отобразятся листы для заполнения."]
[null,null,null,null," На листе «Титульный» нужно заполнить все ячейки голубого и синего цвета.\n Для создания печатной формы нажмите на иконку принтера на листе «Титульный» (левый верхний угол)."]
[null,null,null,null," Гиперссылки на листах вводите, не нарушая цвет ячейки (если копируете гиперссылку из браузера, то выполните двойной щелчок левой кнопки мыши по ячейке и только после этого можете вставить скопированный элемент).\n"]
[null,null,null,null," При вводе даты на расчетных листах необходимо выбрать дату из календаря (иконка справа от выбранной ячейки), либо ввести дату непосредственно в ячейку в формате - 'ДД.ММ.ГГГГ'."]
[null,null,null,null," Если какой-либо из показателей на расчетных листах для Вашей организации отсутствует, введите в поле, обязательное для заполнение, «0» (для числовых показателей) и «-» (для текстовых).\n"]
[null,null,null,null," Внимательно следите за информационными сообщениями на расчетных листах."]
[null,null,null,null," Все необходимые комментарии по всем формам Вы можете отразить на листе «Комментарии»."]
[null,null,null,null," Обосновывающие материалы (документы) необходимо загружать с помощью \"ЕИАС Мониторинг\""]
[null,null,null,null,"Инструкция по загрузке сопроводительных материалов"]
[null,null,null,null,"Инструкция по работе с отчётной формой"]
[]
[null,null,null,null,"При наличии подключения к Интернет, можно автоматически проверять наличие доступных обновлений. Выберите способ оповещения о наличии обновлений для отчёта:"]
[]
[null,null,null,null,null,"проверять доступные обновления (рекомендуется)",null,null,null,null,null,null,null,null,null,null,null,null,null,null,null,null,null,null,null,null,"y"]
[]
[null,null,null,null,null,"никогда не проверять наличие обновлений (не рекомендуется)"]

{"sheet":"Лог обновления","index":4,"n_rows":25,"n_cols":4,"rows_kept":25,"cut":false,"hidden":true,"merged":[[9,1,9,3]]}
[]
[]
[]
[]
[]
[]
[]
[]
[]
[null,"Лог обновления"]
[]
[null,"Дата/Время","Описание","Статус"]
[]
[null,"4/15/2022  3:43:31 PM","Проверка доступных обновлений...","Информация"]
[null,"4/15/2022  3:43:33 PM","Доступно обновление до версии 3.2.2","Информация"]
[null,"4/15/2022  3:43:33 PM","Описание изменений: Версия 3.2.2\n1. Корректировка номера приказа и списка лет на листе 'Титульный'.\n2. Корректировка листа 'Раздел 2'. \n\nВерсия 3.2.1 (только с версии 3.2)\n- Форма скорректирована в соответствии с приказом Росстата от 18.07.2019 N 414 (приложение 10), начиная с 2020 года.","Информация"]
[null,"4/15/2022  3:43:33 PM","Размер файла обновления: 429056 байт","Информация"]
[null,"4/15/2022  3:43:36 PM","Подготовка к обновлению...","Информация"]
[null,"4/15/2022  3:43:41 PM","Сохранение файла резервной копии: E:\\!Work\\Обновление FORMA.P2.ST\\123.BKP.xls","Информация"]
[null,"4/15/2022  3:43:51 PM","Резервная копия создана: E:\\!Work\\Обновление FORMA.P2.ST\\123.BKP.xls","Информация"]
[null,"4/15/2022  3:43:51 PM","Создание книги для установки обновлений...","Информация"]
[null,"4/15/2022  3:44:00 PM","Файл обновления загружен: E:\\!Work\\Обновление FORMA.P2.ST\\UPDATE.FORMA.P2.ST.TO.3.2.2.34.xls","Информация"]
[null,"4/15/2022  3:44:11 PM","Обновление завершилось удачно! Шаблон FORMA.P2.ST(v3.2.1).xls сохранен под именем 'FORMA.P2.ST(v3.2.2).xls'","Информация"]
[null,"4/18/2022  1:19:22 PM","Проверка доступных обновлений...","Информация"]
[null,"4/18/2022  1:19:23 PM","Нет доступных обновлений для отчёта с кодом FORMA.P2.ST!","Информация"]

{"sheet":"Титульный","index":5,"n_rows":68,"n_cols":8,"rows_kept":68,"cut":false,"hidden":true,"merged":[[14,2,14,3],[16,2,16,3]]}
[]
[]
[]
[]
[]
[]
[]
[]
[]
[]
[]
[]
[]
[]
[null,null,"Сведения об инвестициях в нефинансовые активы"]
[null,null,{"$f":"GetCode()","v":"FORMA.P2.ST"}]
[null,null,"Форма № П-2\nПриказ Росстата:\nОб утверждении формы\nот 17.07.2015 № 327"]
[null,null,"Субъект РФ"]
[]
[null,null,null,"Отчетный период"]
[null,null,"Год"]
[null,null,"Период"]
[]
[null,null,"Признак филиала"]
[]
[]
[]
[null,null,"Наименование отчитывающейся организации"]
[null,null,"Наименование филиала"]
[null,null,"ИНН"]
[null,null,"КПП"]
[]
[null,null,"Является ли данное юридическое лицо подразделением (филиалом) другой организации"]
[null,null,"Наименование филиала"]
[]
[null,null,null,"Коды"]
[null,null,"Наименование","ОКУД"]
[null,null,"Код","0617004"]
[null,null,"Наименование","ОКПО"]
[null,null,"Код"]
[null,null,"Наименование"]
[null,null,"Код"]
[null,null,"Наименование"]
[null,null,"Код"]
[]
[null,null,null,null,null,null,null," "]
[]
[null,null,"Муниципальный район"]
[null,null,"Муниципальное образование"]
[null,null,"ОКТМО"]
[]
[null,null,null,"Адрес организации"]
[null,null,"Юридический адрес"]
[null,null,"Почтовый адрес"]
[]
[null,null,null,"Руководитель"]
[null,null,"Фамилия, имя, отчество"]
[null,null,"(код) номер телефона"]
[]
[null,null,null,"Главный бухгалтер"]
[null,null,"Фамилия, имя, отчество"]
[null,null,"(код) номер телефона"]
[]
[null,null,null,"Должностное лицо, ответственное за составление формы"]
[null,null,"Фамилия, имя, отчество"]
[null,null,"Должность"]
[null,null,"(код) номер телефона"]
[null,null,"e-mail"]

{"sheet":"Раздел 1","index":6,"n_rows":35,"n_cols":12,"rows_kept":35,"cut":false,"hidden":true,"merged":[[12,5,12,6],[13,5,13,6],[14,5,14,6],[32,5,32,6],[33,5,33,6],[21,5,21,6],[34,5,34,6],[27,5,27,6],[30,5,30,6],[31,5,31,6],[22,5,22,6],[23,5,23,6],[5,4,5,11],[8,4,9,4],[8,5,8,6],[8,7,9,7],[8,8,9,8],[8,9,9,9],[8,10,9,10],[8,11,9,11],[11,5,11,6],[15,5,15,6],[16,5,16,6],[24,5,24,6],[25,5,25,6],[26,5,26,6],[17,5,17,6],[18,5,18,6],[19,5,19,6],[20,5,20,6]]}
[]
[]
[]
[]
[]
[null,null,null,null,"Раздел 1. Инвестиции в нефинансовые активы"]
[]
[null,null,null,null,null,null,null,null,null,null,null,"Коды по ОКЕИ: тысяча рублей - 384"]
[null,null,null,null,"№ п/п","Показатель",null,"№\nстроки","За период с начала отчетного года","За отчетный квартал","За соответствующий период предыдущего года","За соответствующий квартал предыдущего года"]
[null,null,null,null,null,"наименование","код по ОКВЭД 2"]
[null,null,null,null,"0","А.1","А.2","Б","1","2","3","4"]
[null,null,null,null,"1","Инвестиции в основной капитал, в том числе:",null,"01",{"$f":"SUM(I13:I20)+I25","v":0},{"$f":"SUM(J13:J20)+J25","v":0},{"$f":"SUM(K13:K20)+K25","v":0},{"$f":"SUM(L13:L20)+L25","v":0}]
[null,null,null,null,"1.1","жилые здания и помещения",null,"02"]
[null,null,null,null,"1.2","здания (кроме жилых)",null,"03"]
[null,null,null,null,"1.3","сооружения",null,"04"]
[null,null,null,null,"1.4","расходы на улучшение земель",null,"05"]
[null,null,null,null,"1.5","транспортные средства",null,"06"]
[null,null,null,null,"1.6","информационное, компьютерное и телекоммуникационное (ИКТ) оборудование",null,"07"]
[null,null,null,null,"1.7","прочие машины и оборудование, включая хозяйственный инвентарь, и другие объекты",null,"08"]
[null,null,null,null,"1.8","объекты интеллектуальной собственности, в том числе:",null,"09"]
[null,null,null,null,"1.8.1","научные исследования и разработки",null,"10",null,null,"x","x"]
[null,null,null,null,"1.8.2","расходы на разведку недр и оценку запасов полезных ископаемых",null,"11",null,null,"x","x"]
[null,null,null,null,"1.8.3","программное обеспечение, базы данных",null,"12",null,null,"x","x"]
[null,null,null,null,"1.8.4","оригиналы произведений развлекательного жанра, литературы и искусства",null,"13",null,null,"x","x"]
[null,null,null,null,"1.9","прочие инвестиции",null,"14",{"$f":"SUM(I26:I27)","v":0},{"$f":"SUM(J26:J27)","v":0}]
[null,null,null,null,"1.9.1","затраты на формирование рабочего, продуктивного и племенного стада",null,"15",null,null,"x","x"]
[null,null,null,null,"1.9.2","затраты по насаждению и выращиванию многолетних культур",null,"16",null,null,"x","x"]
[null,null,null,null,"2","Из \"строки 01\" - по видам деятельности"]
[null,null,null,null,"2.1",null,null,17]
[null,null,null,null,null,"Добавить вид деятельности"]
[null,null,null,null,"3","Инвестиции в непроизведенные нефинансовые активы, в том числе затраты на приобретение:",null,20,{"$f":"SUM(I32:I33)","v":0},{"$f":"SUM(J32:J33)","v":0},"x","x"]
[null,null,null,null,"3.1","земли и объектов природопользования",null,21,null,null,"x","x"]
[null,null,null,null,"3.2","контрактов, договоров аренды, лицензии, деловой репутации («гудвилла»), деловых связей (маркетинговых активов)",null,22,null,null,"x","x"]
[null,null,null,null,null,"Кроме того: затраты на приобретение основных средств, бывших в употреблении у других юридических и физических лиц, и объектов незавершенного строительства",null,"(23)",null,"тыс.руб."]
[null,null,null,null,null,"в т.ч. машины, оборудование, транспортные средства",null,"(24)",null,"тыс.руб."]

{"sheet":"Раздел 2","index":7,"n_rows":37,"n_cols":10,"rows_kept":37,"cut":false,"hidden":true,"merged":[[31,4,31,8],[19,5,19,6],[20,5,20,6],[21,5,21,6],[22,5,22,6],[23,5,23,6],[29,5,29,6],[13,5,13,6],[14,5,14,6],[15,5,15,6],[16,5,16,6],[17,5,17,6],[18,5,18,6],[5,4,5,9],[8,5,8,6],[9,5,9,6],[10,5,10,6],[11,5,11,6],[12,5,12,6]]}
[]
[]
[]
[]
[]
[null,null,null,null,"Раздел 2. Источники инвестиций"]
[]
[null,null,null,null,null,null,null,null,null,"Код по ОКЕИ: тысяча рублей - 384"]
[null,null,null,null,"№ п/п","Наименование показателя",null,"№\nстроки","Инвестиции \nв основной капитал","Инвестиции в непроизведенные нефинансовые активы"]
[null,null,null,null,"0","А",null,"Б","1","2"]
[null,null,null,null,"1","Собственные средства, в том числе:",null,"31",{"$f":"'Раздел 1'!I12-'Раздел 2'!I12","v":0},{"$f":"'Раздел 1'!I$31-'Раздел 2'!J12","v":0}]
[null,null,null,null,"2","Привлеченные средства, в том числе:",null,"32",{"$f":"SUBTOTAL(109,I13,I15,I16,I17,I21,I22,I24)","v":0},{"$f":"J13+J15+J16+J17+J21+J24","v":0}]
[null,null,null,null,"2.1","кредиты банков, из них:",null,"33"]
[null,null,null,null,"2.1.1","кредиты иностранных банков",null,"34"]
[null,null,null,null,"2.2","заемные средства других организаций",null,"35"]
[null,null,null,null,"2.3","инвестиции из-за рубежа",null,"36"]
[null,null,null,null,"2.4","бюджетные средства, в том числе:",null,"37"]
[null,null,null,null,"2.4.1","из федерального бюджета",null,"38"]
[null,null,null,null,"2.4.2","из бюджетов субъектов Российской Федерации",null,"39"]
[null,null,null,null,"2.4.3","из местных бюджетов",null,"40"]
[null,null,null,null,"2.5","средства внебюджетных фондов",null,"41"]
[{"$f":"IF(SUBTOTAL(103,B22) > 0,TRUE,FALSE)","v":false},1,null,null,"2.6","средства организаций и населения, привлеченные для долевого строительства, из них:",null,{"$f":"IF(A22,H21+1,H21)","v":"41"},null,"x"]
[{"$f":"IF(SUBTOTAL(103,B23) > 0,TRUE,FALSE)","v":false},1,null,null,"2.6.1","средства населения",null,{"$f":"IF(A23,H22+1,H22)","v":"41"},null,"x"]
[null,null,null,null,{"$f":"IF(A22,\"2.7\",\"2.6\")","v":"2.6"},"прочие, из них:",null,{"$f":"H23 + 1","v":42}]
[]
[]
[]
[]
[null,null,null,null,null,"Справочно:"]
[null,null,null,null,null,"Осуществляли ли Вы инвестиции в основной капитал, направленные на природоохранные мероприятия, а также строительство и ввод природоохранных объектов",null,{"$f":"H24 + 1","v":43}]
[]
[null,null,null,null,"Информация с подрядных организациях, выполнивших работы по строительству и реконструкции основных средств, отраженных по строкам 02 - 05 раздела 1"]
[]
[null,null,null,null,"№ п/п","Наименование подрядной организации","Код ОКПО или ИНН","№\nстроки","Объем выполненных строительных работ за отчетный квартал, тыс руб"]
[null,null,null,null,"0","А","Б","В","1"]
[null,null,null,null,1,"","",{"$f":"H30 + 1","v":44}]
[null,null,null,null,null,"Добавить организацию"]

{"sheet":"Обосновывающие материалы","index":8,"n_rows":16,"n_cols":10,"rows_kept":16,"cut":false,"hidden":true,"merged":[[6,7,6,9],[8,7,8,9],[9,7,9,9]]}
[]
[]
[]
[]
[]
[]
[null,null,null,null,null,null,null,"Обосновывающие материалы"]
[]
[]
[]
[]
[null,null,null,null,null,null,null,"№ п/п","Ссылка на материал","Примечание"]
[null,null,null,null,null,null,null,"1","2",3]
[]
[null,null,null,null,null,null,null,"0"]
[null,null,null,null,null,null,null,null,"Добавить ссылку"]

{"sheet":"Комментарии","index":9,"n_rows":10,"n_cols":9,"rows_kept":10,"cut":false,"hidden":true,"merged":[[7,7,7,8]]}
[]
[]
[]
[]
[]
[]
[]
[null,null,null,null,null,null,null,"Комментарии"]
[]
[null,null,null,null,null,null,null,null,"Добавить комментарий"]

{"sheet":"Проверка","index":10,"n_rows":13,"n_cols":8,"rows_kept":13,"cut":false,"hidden":true,"merged":[[10,4,10,7]]}
[]
[]
[]
[]
[]
[]
[]
[]
[]
[]
[null,null,null,null,"Результат проверки"]
[]
[null,null,null,null,"Ссылка1","Ссылка2","Причина","Статус"]

{"sheet":"TEHSHEET","index":11,"n_rows":87,"n_cols":20,"rows_kept":87,"cut":false,"hidden":true,"merged":[[0,19,0,21]]}
["FORMA.P2.ST","регион","Логика","Кварталы","Года","Месяц-текст","Месяц-число","День-число",null,"XML_ORG_LIST_TAG_NAMES",null,"TestMode",null,null,"SphereList","SphereList_ru",null,null,null,"UpdateDocLinkReestr"]
["3.2.2","Алтайский край","да","I квартал",2021,"январь","01","01",null,"NSRF",null,3,null,null,"VO","Водоотведение"]
[null,"Амурская область","нет","I полугодие",2022,"февраль","02","02",null,"MR_NAME",null,null,null,null,"GAS","Газоснабжение"]
[null,"Архангельская область",null,"9 месяцев",2023,"март","03","03",null,"OKTMO_MR_NAME",null,null,null,null,"HOT_VS","Горячее водоснабжение"]
[null,"Астраханская область",null,"год",2024,"апрель","04","04",null,"MO_NAME",null,null,null,null,"WARM","Теплоснабжение"]
[null,"Белгородская область","Выбранный регион",null,2025,"май","05","05",null,"OKTMO_NAME",null,null,null,null,"TBO","Утилизация твердых бытовых отходов"]
[null,"Брянская область",0,null,2026,"июнь","06","06",null,"ORG_NAME",null,null,null,null,"VS","Холодное водоснабжение"]
[null,"Владимирская область",null,"I квартал",2027,"июль","07","07",null,"INN_NAME",null,null,null,null,"EE","Электроэнергетика"]
[null,"Волгоградская область",null,"II квартал",null,"август","08","08",null,"KPP_NAME",null,null,null,null,"VS_VO","Водоснабжение и водоотведение"]
[null,"Вологодская область",null,"III квартал",null,"сентябрь","09","09",null,"VDET_NAME",null,null,null,null,"SOCIAL","Социальные услуги"]
[null,"Воронежская область",null,"IV квартал",null,"октябрь",10,10,null,"XML_MR_MO_OKTMO_LIST_TAG_NAMES"]
[null,"г.Байконур",null,null,null,"ноябрь",11,11,null,"NSRF"]
[null,"г. Москва",null,null,null,"декабрь",12,12,null,"MR_NAME"]
[null,"г.Санкт-Петербург",null,null,null,null,null,13,null,"OKTMO_MR_NAME"]
[null,"г.Севастополь",null,null,null,null,null,14,null,"MO_NAME"]
[null,"Еврейская автономная область",null,null,null,null,null,15,null,"OKTMO_NAME"]
[null,"Забайкальский край",null,null,null,null,null,16]
[null,"Ивановская область",null,null,null,null,null,17]
[null,"Иркутская область",null,null,null,null,null,18,null,"XML_DICTIONARIES_LIST_TAG_NAMES"]
[null,"Кабардино-Балкарская республика",null,null,null,null,null,19,null,"SECTION_NAME"]
[null,"Калининградская область",null,null,null,null,null,20,null,"SUBSECTION_NAME"]
[null,"Калужская область",null,null,null,null,null,21,null,"NAME"]
[null,"Камчатский край",null,null,null,null,null,22,null,"CODE"]
[null,"Карачаево-Черкесская республика",null,null,null,null,null,23]
[null,"Кемеровская область",null,null,null,null,null,24]
[null,"Кировская область",null,null,null,null,null,25]
[null,"Костромская область",null,null,null,null,null,26]
[null,"Краснодарский край",null,null,null,null,null,27]
[null,"Красноярский край",null,null,null,null,null,28]
[null,"Курганская область",null,null,null,null,null,29]
[null,"Курская область",null,null,null,null,null,30]
[null,"Ленинградская область",null,null,null,null,null,31]
[null,"Липецкая область"]
[null,"Магаданская область"]
[null,"Московская область"]
[null,"Мурманская область"]
[null,"Ненецкий автономный округ"]
[null,"Нижегородская область"]
[null,"Новгородская область"]
[null,"Новосибирская область"]
[null,"Омская область"]
[null,"Оренбургская область"]
[null,"Орловская область"]
[null,"Пензенская область"]
[null,"Пермский край"]
[null,"Приморский край"]
[null,"Псковская область"]
[null,"Республика Адыгея"]
[null,"Республика Алтай"]
[null,"Республика Башкортостан"]
[null,"Республика Бурятия"]
[null,"Республика Дагестан"]
[null,"Республика Ингушетия"]
[null,"Республика Калмыкия"]
[null,"Республика Карелия"]
[null,"Республика Коми"]
[null,"Республика Крым"]
[null,"Республика Марий Эл"]
[null,"Республика Мордовия"]
[null,"Республика Саха (Якутия)"]
[null,"Республика Северная Осетия-Алания"]
[null,"Республика Татарстан"]
[null,"Республика Тыва"]
[null,"Республика Хакасия"]
[null,"Ростовская область"]
[null,"Рязанская область"]
[null,"Самарская область"]
[null,"Саратовская область"]
[null,"Сахалинская область"]
[null,"Свердловская область"]
[null,"Смоленская область"]
[null,"Ставропольский край"]
[null,"Тамбовская область"]
[null,"Тверская область"]
[null,"Томская область"]
[null,"Тульская область"]
[null,"Тюменская область"]
[null,"Удмуртская республика"]
[null,"Ульяновская область"]
[null,"Хабаровский край"]
[null,"Ханты-Мансийский автономный округ"]
[null,"Челябинская область"]
[null,"Чеченская республика"]
[null,"Чувашская республика"]
[null,"Чукотский автономный округ"]
[null,"Ямало-Ненецкий автономный округ"]
[null,"Ярославская область"]

{"sheet":"modfrmRegion","index":12,"n_rows":0,"n_cols":0,"rows_kept":0,"cut":false,"hidden":true,"merged":[]}

{"sheet":"et_union","index":13,"n_rows":20,"n_cols":8,"rows_kept":20,"cut":false,"hidden":true,"merged":[]}
[]
[]
[]
[]
["add_coms","Комментарии"]
[null,null,null,null,null,null,"О"]
[]
["add_mat","Обосновывающие материалы"]
[null,null,null,null,null,null,"О","1"]
[]
[]
[]
["add_01"]
[]
[null,null,null,"О"]
[]
[]
["add_02"]
[]
[null,null,null,"О",null,null,null,{"$f":"OFFSET(H20,-1,0)","v":0}]

{"sheet":"mod_mat","index":14,"n_rows":16,"n_cols":10,"rows_kept":16,"cut":false,"hidden":true,"merged":[[6,7,6,9],[8,7,8,9],[9,7,9,9]]}
[]
[]
[]
[]
[]
[]
[null,null,null,null,null,null,null,"Обосновывающие материалы"]
[]
[]
[]
[]
[null,null,null,null,null,null,null,"№ п/п","Ссылка на материал","Примечание"]
[null,null,null,null,null,null,null,"1","2",3]
[null,null,null,null,null,null,null,"0"]
[null,null,null,null,null,null,null,"0"]
[null,null,null,null,null,null,null,null,"Добавить ссылку"]

{"sheet":"modReestr","index":15,"n_rows":0,"n_cols":0,"rows_kept":0,"cut":false,"hidden":true,"merged":[]}

{"sheet":"modfrmReestr","index":16,"n_rows":0,"n_cols":0,"rows_kept":0,"cut":false,"hidden":true,"merged":[]}

{"sheet":"mod_wb","index":17,"n_rows":0,"n_cols":0,"rows_kept":0,"cut":false,"hidden":true,"merged":[]}

{"sheet":"modUpdTemplMain","index":18,"n_rows":0,"n_cols":0,"rows_kept":0,"cut":false,"hidden":true,"merged":[]}

{"sheet":"modfrmCheckUpdates","index":19,"n_rows":0,"n_cols":0,"rows_kept":0,"cut":false,"hidden":true,"merged":[]}

{"sheet":"modInfo","index":20,"n_rows":11,"n_cols":2,"rows_kept":11,"cut":false,"hidden":true,"merged":[]}
[]
[null,"Укажите, применяется ли в организации упрощенная система налогообложения."]
[null,"Задайте период регулирования, выбрав значение из списка."]
[null,"Укажите, является ли данное юридическое лицо подразделением (филиалом) другой организации."]
[null,"Нажмите на кнопку \"Выбрать организацию из реестра\", чтобы выбрать организацию или обновить реестр организаций."]
[null,"Нажмите на кнопку \"Обновить реестр МР/МО\" чтобы обновить реестр МР/МО."]
[null,"Выберите из списка муниципальный район, а затем муниципальное образование."]
[null,"Укажите, выполняет ли организация инвестиционную программу. Если да, укажите дату утверждения инвестиционной программы."]
[null,"Выберите из списка вид товара в системе водоотведения."]
[null,"В городах и поселках городского типа - 1; в сельской местности - 2"]
[null,"Для данного шаблона актуальных обновлений нет."]

{"sheet":"modInstruction","index":21,"n_rows":0,"n_cols":0,"rows_kept":0,"cut":false,"hidden":true,"merged":[]}

{"sheet":"modServiceModule","index":22,"n_rows":0,"n_cols":0,"rows_kept":0,"cut":false,"hidden":true,"merged":[]}

{"sheet":"mod_Coms","index":23,"n_rows":10,"n_cols":9,"rows_kept":10,"cut":false,"hidden":true,"merged":[[7,7,7,8]]}
[]
[]
[]
[]
[]
[]
[]
[null,null,null,null,null,null,null,"Комментарии"]
[]
[null,null,null,null,null,null,null,null,"Добавить комментарий"]

{"sheet":"modCommandButton","index":24,"n_rows":0,"n_cols":0,"rows_kept":0,"cut":false,"hidden":true,"merged":[]}

{"sheet":"modfrmDateChoose","index":25,"n_rows":0,"n_cols":0,"rows_kept":0,"cut":false,"hidden":true,"merged":[]}

{"sheet":"mod_01","index":26,"n_rows":31,"n_cols":10,"rows_kept":31,"cut":false,"hidden":true,"merged":[[34,5,34,6],[33,5,33,6],[14,5,14,6],[26,5,26,6],[25,5,25,6],[20,5,20,6],[15,5,15,6],[32,5,32,6],[21,5,21,6],[22,5,22,6],[8,9,9,9],[8,10,9,10],[8,11,9,11],[11,5,11,6],[31,5,31,6],[23,5,23,6],[24,5,24,6],[27,5,27,6],[30,5,30,6],[16,5,16,6],[12,5,12,6],[19,5,19,6],[13,5,13,6],[18,5,18,6],[5,4,5,11],[8,4,9,4],[8,5,8,6],[8,7,9,7],[8,8,9,8],[17,5,17,6]]}
[]
[]
[]
[]
[]
[]
[]
[]
[]
[]
[]
[]
[]
[]
[]
[]
[]
[]
[]
[]
[]
[]
[]
[]
[]
[]
[]
[]
[]
[]
[null,null,null,null,null,null,null,null,{"$f":"SUM(I32:I33)","v":0},{"$f":"SUM(J32:J33)","v":0}]

{"sheet":"REESTR_ORG","index":27,"n_rows":0,"n_cols":0,"rows_kept":0,"cut":false,"hidden":true,"merged":[]}